{"text_format":"1","workbook":"xlsx","n_sheets":3,"sheets":["Лист1","Лист2","Лист3"],"not_rendered":{"charts":0,"images":0,"macros":1,"external_links":0,"defined_names":0,"comments":0,"pivot_tables":0},"unopened":[],"bounds":{"document_bytes":16777216,"sheet_cells":100000,"rows_first":2000,"rows_last":500,"rows_between":2000,"halvings":0,"cell_chars":16384,"cell_head_chars":4096},"cells_cut":0,"cells_raw":0,"read":"whole","date_system":"1900"}

{"sheet":"Лист1","index":0,"n_rows":99,"n_cols":4,"rows_kept":99,"cut":false,"hidden":false,"merged":[]}
["Старая ссылка","Редиректная ссылка","Проверка"]
["http://iqtoy.ru/store/product/75608","http://iqtoy.ru/store/product/75608/",{"$f":"IF(A2&\"/\"=B2, \"404\",IF(A2=B2,\"\",\"ОК\"))","v":"404"},{"$f":"IF(MOD(GetURLstatus(A2)+GetURLstatus(B2)-400,100),SUMPRODUCT(--(MOD(GetURLstatus(A2)+GetURLstatus(B2)-400,100)={3,6,4,8}),{403,403,404,404}),\"OK\")","v":404}]
["http://iqtoy.ru/store/product/75609","http://iqtoy.ru/store/product/75609/","404",{"$f":"IF(MOD(GetURLstatus(A3)+GetURLstatus(B3)-400,100),SUMPRODUCT(--(MOD(GetURLstatus(A3)+GetURLstatus(B3)-400,100)={3,6,4,8}),{403,403,404,404}),\"OK\")","v":404}]
["http://iqtoy.ru/store/product/75610","http://iqtoy.ru/store/product/75610/","404",{"$f":"IF(MOD(GetURLstatus(A4)+GetURLstatus(B4)-400,100),SUMPRODUCT(--(MOD(GetURLstatus(A4)+GetURLstatus(B4)-400,100)={3,6,4,8}),{403,403,404,404}),\"OK\")","v":404}]
["http://iqtoy.ru/store/product/75611","http://iqtoy.ru/store/product/75611/","404",{"$f":"IF(MOD(GetURLstatus(A5)+GetURLstatus(B5)-400,100),SUMPRODUCT(--(MOD(GetURLstatus(A5)+GetURLstatus(B5)-400,100)={3,6,4,8}),{403,403,404,404}),\"OK\")","v":404}]
["http://iqtoy.ru/store/product/43640","http://iqtoy.ru/store/product/igra-tom-servis-domino-zhivotnye-5555-1/","ОК",{"$f":"IF(MOD(GetURLstatus(A6)+GetURLstatus(B6)-400,100),SUMPRODUCT(--(MOD(GetURLstatus(A6)+GetURLstatus(B6)-400,100)={3,6,4,8}),{403,403,404,404}),\"OK\")","v":404}]
["http://iqtoy.ru/store/product/40653","http://iqtoy.ru/store/product/igra-tom-servis-domino-igrushki-5555-3/","ОК",{"$f":"IF(MOD(GetURLstatus(A7)+GetURLstatus(B7)-400,100),SUMPRODUCT(--(MOD(GetURLstatus(A7)+GetURLstatus(B7)-400,100)={3,6,4,8}),{403,403,404,404}),\"OK\")","v":404}]
["http://iqtoy.ru/store/product/40654","http://iqtoy.ru/store/product/igra-tom-servis-domino-tochki-5655-2/","ОК",{"$f":"IF(MOD(GetURLstatus(A8)+GetURLstatus(B8)-400,100),SUMPRODUCT(--(MOD(GetURLstatus(A8)+GetURLstatus(B8)-400,100)={3,6,4,8}),{403,403,404,404}),\"OK\")","v":404}]
["http://iqtoy.ru/store/product/40664","http://iqtoy.ru/store/product/igra-tom-servis-loto-rastitelnyy-mir-6-2222-1/","ОК",{"$f":"IF(MOD(GetURLstatus(A9)+GetURLstatus(B9)-400,100),SUMPRODUCT(--(MOD(GetURLstatus(A9)+GetURLstatus(B9)-400,100)={3,6,4,8}),{403,403,404,404}),\"OK\")","v":404}]
["http://iqtoy.ru/store/product/72280","http://iqtoy.ru/store/product/72280/","404",{"$f":"IF(MOD(GetURLstatus(A10)+GetURLstatus(B10)-400,100),SUMPRODUCT(--(MOD(GetURLstatus(A10)+GetURLstatus(B10)-400,100)={3,6,4,8}),{403,403,404,404}),\"OK\")","v":404}]
["http://iqtoy.ru/store/product/40655","http://iqtoy.ru/store/product/konstruktor-tom-servis-kurochka-ryaba-17-d-4534-1/","ОК",{"$f":"IF(MOD(GetURLstatus(A11)+GetURLstatus(B11)-400,100),SUMPRODUCT(--(MOD(GetURLstatus(A11)+GetURLstatus(B11)-400,100)={3,6,4,8}),{403,403,404,404}),\"OK\")","v":404}]
["http://iqtoy.ru/store/product/43652","http://iqtoy.ru/store/product/konstruktor-tom-servis-skazki-kolobok-3423-1/","ОК",{"$f":"IF(MOD(GetURLstatus(A12)+GetURLstatus(B12)-400,100),SUMPRODUCT(--(MOD(GetURLstatus(A12)+GetURLstatus(B12)-400,100)={3,6,4,8}),{403,403,404,404}),\"OK\")","v":404}]
["http://iqtoy.ru/store/product/56619","http://iqtoy.ru/store/product/tom-servis-skazki-repka-19-d-4534-7/","ОК",{"$f":"IF(MOD(GetURLstatus(A13)+GetURLstatus(B13)-400,100),SUMPRODUCT(--(MOD(GetURLstatus(A13)+GetURLstatus(B13)-400,100)={3,6,4,8}),{403,403,404,404}),\"OK\")","v":404}]
["http://iqtoy.ru/store/product/40656","http://iqtoy.ru/store/product/konstruktor-tom-servis-skazki-masha-i-medved-15-d-1201-2/","ОК",{"$f":"IF(MOD(GetURLstatus(A14)+GetURLstatus(B14)-400,100),SUMPRODUCT(--(MOD(GetURLstatus(A14)+GetURLstatus(B14)-400,100)={3,6,4,8}),{403,403,404,404}),\"OK\")","v":"OK"}]
["http://iqtoy.ru/store/product/47520","http://iqtoy.ru/store/product/konstruktor-tom-servis-cvetnoy-14-det-6678-14/","ОК",{"$f":"IF(MOD(GetURLstatus(A15)+GetURLstatus(B15)-400,100),SUMPRODUCT(--(MOD(GetURLstatus(A15)+GetURLstatus(B15)-400,100)={3,6,4,8}),{403,403,404,404}),\"OK\")","v":404}]
["http://iqtoy.ru/store/product/71123","http://iqtoy.ru/store/product/konstruktor-tomik-veselyy-gorodok-7678-1/","ОК",{"$f":"IF(MOD(GetURLstatus(A16)+GetURLstatus(B16)-400,100),SUMPRODUCT(--(MOD(GetURLstatus(A16)+GetURLstatus(B16)-400,100)={3,6,4,8}),{403,403,404,404}),\"OK\")","v":"OK"}]
["http://iqtoy.ru/store/product/72282","http://iqtoy.ru/store/product/72282/","404",{"$f":"IF(MOD(GetURLstatus(A17)+GetURLstatus(B17)-400,100),SUMPRODUCT(--(MOD(GetURLstatus(A17)+GetURLstatus(B17)-400,100)={3,6,4,8}),{403,403,404,404}),\"OK\")","v":404}]
["http://iqtoy.ru/store/product/68956","http://iqtoy.ru/store/product/konstruktor-tom-servis-transport-7678-3/","ОК",{"$f":"IF(MOD(GetURLstatus(A18)+GetURLstatus(B18)-400,100),SUMPRODUCT(--(MOD(GetURLstatus(A18)+GetURLstatus(B18)-400,100)={3,6,4,8}),{403,403,404,404}),\"OK\")","v":404}]
["http://iqtoy.ru/store/product/72274","http://iqtoy.ru/store/product/72274/","404",{"$f":"IF(MOD(GetURLstatus(A19)+GetURLstatus(B19)-400,100),SUMPRODUCT(--(MOD(GetURLstatus(A19)+GetURLstatus(B19)-400,100)={3,6,4,8}),{403,403,404,404}),\"OK\")","v":404}]
["http://iqtoy.ru/store/product/68957","http://iqtoy.ru/store/product/konstruktor-tom-servis-cvetnoy-gorodok-8-det-goluboy-8688-3/","ОК",{"$f":"IF(MOD(GetURLstatus(A20)+GetURLstatus(B20)-400,100),SUMPRODUCT(--(MOD(GetURLstatus(A20)+GetURLstatus(B20)-400,100)={3,6,4,8}),{403,403,404,404}),\"OK\")","v":404}]
["http://iqtoy.ru/store/product/68954","http://iqtoy.ru/store/product/konstruktor-tom-servis-cvetnoy-gorodok-14-det-zelenyy-8688-4/","ОК",{"$f":"IF(MOD(GetURLstatus(A21)+GetURLstatus(B21)-400,100),SUMPRODUCT(--(MOD(GetURLstatus(A21)+GetURLstatus(B21)-400,100)={3,6,4,8}),{403,403,404,404}),\"OK\")","v":404}]
["http://iqtoy.ru/store/product/56618","http://iqtoy.ru/store/product/konstruktor-tom-servis-cvetnoy-gorodok-b-41-det-8688-8/","ОК",{"$f":"IF(MOD(GetURLstatus(A22)+GetURLstatus(B22)-400,100),SUMPRODUCT(--(MOD(GetURLstatus(A22)+GetURLstatus(B22)-400,100)={3,6,4,8}),{403,403,404,404}),\"OK\")","v":404}]
["http://iqtoy.ru/store/product/40662","http://iqtoy.ru/store/product/igra-tom-servis-kubiki-12-sht-alfavit-russkiy-1111-1/","ОК",{"$f":"IF(MOD(GetURLstatus(A23)+GetURLstatus(B23)-400,100),SUMPRODUCT(--(MOD(GetURLstatus(A23)+GetURLstatus(B23)-400,100)={3,6,4,8}),{403,403,404,404}),\"OK\")","v":"OK"}]
["http://iqtoy.ru/store/product/43656","http://iqtoy.ru/store/product/kubiki-tom-servis-alfavit-s-ciframi-russkiy-20-sht-2222-2/","ОК",{"$f":"IF(MOD(GetURLstatus(A24)+GetURLstatus(B24)-400,100),SUMPRODUCT(--(MOD(GetURLstatus(A24)+GetURLstatus(B24)-400,100)={3,6,4,8}),{403,403,404,404}),\"OK\")","v":"OK"}]
["http://iqtoy.ru/store/product/69985","http://iqtoy.ru/store/product/tomik-kub-4-zhivotnye-3333-1/","ОК",{"$f":"IF(MOD(GetURLstatus(A25)+GetURLstatus(B25)-400,100),SUMPRODUCT(--(MOD(GetURLstatus(A25)+GetURLstatus(B25)-400,100)={3,6,4,8}),{403,403,404,404}),\"OK\")","v":"OK"}]
["http://iqtoy.ru/store/product/69986","http://iqtoy.ru/store/product/tomik-kub-4-frukty-yagody-3333-2/","ОК",{"$f":"IF(MOD(GetURLstatus(A26)+GetURLstatus(B26)-400,100),SUMPRODUCT(--(MOD(GetURLstatus(A26)+GetURLstatus(B26)-400,100)={3,6,4,8}),{403,403,404,404}),\"OK\")","v":"OK"}]
["http://iqtoy.ru/store/product/67412","http://iqtoy.ru/store/product/tomik-kub-4-igrushki-3333-3/","ОК",{"$f":"IF(MOD(GetURLstatus(A27)+GetURLstatus(B27)-400,100),SUMPRODUCT(--(MOD(GetURLstatus(A27)+GetURLstatus(B27)-400,100)={3,6,4,8}),{403,403,404,404}),\"OK\")","v":"OK"}]
["http://iqtoy.ru/store/product/72275","http://iqtoy.ru/store/product/72275/","404",{"$f":"IF(MOD(GetURLstatus(A28)+GetURLstatus(B28)-400,100),SUMPRODUCT(--(MOD(GetURLstatus(A28)+GetURLstatus(B28)-400,100)={3,6,4,8}),{403,403,404,404}),\"OK\")","v":404}]
["http://iqtoy.ru/store/product/43657","http://iqtoy.ru/store/product/kubiki-tom-servis-geroi-skazok-9-sht-4444-2/","ОК",{"$f":"IF(MOD(GetURLstatus(A29)+GetURLstatus(B29)-400,100),SUMPRODUCT(--(MOD(GetURLstatus(A29)+GetURLstatus(B29)-400,100)={3,6,4,8}),{403,403,404,404}),\"OK\")","v":"OK"}]
["http://iqtoy.ru/store/product/47522","http://iqtoy.ru/store/product/kubiki-tom-servis-domashnie-zhivotnye-9-sht-4444-3/","ОК",{"$f":"IF(MOD(GetURLstatus(A30)+GetURLstatus(B30)-400,100),SUMPRODUCT(--(MOD(GetURLstatus(A30)+GetURLstatus(B30)-400,100)={3,6,4,8}),{403,403,404,404}),\"OK\")","v":"OK"}]
["http://iqtoy.ru/store/product/43658","http://iqtoy.ru/store/product/kubiki-tom-servis-zhivotnye-lesa-9-sht-4444-4/","ОК",{"$f":"IF(MOD(GetURLstatus(A31)+GetURLstatus(B31)-400,100),SUMPRODUCT(--(MOD(GetURLstatus(A31)+GetURLstatus(B31)-400,100)={3,6,4,8}),{403,403,404,404}),\"OK\")","v":"OK"}]
["http://iqtoy.ru/store/product/43660","http://iqtoy.ru/store/product/kubiki-tom-servis-piramidka-5-det-novaya-202/","ОК",{"$f":"IF(MOD(GetURLstatus(A32)+GetURLstatus(B32)-400,100),SUMPRODUCT(--(MOD(GetURLstatus(A32)+GetURLstatus(B32)-400,100)={3,6,4,8}),{403,403,404,404}),\"OK\")","v":"OK"}]
["http://iqtoy.ru/store/product/55007","http://iqtoy.ru/store/product/kubiki-tom-servis-piramidka-9-det-novaya-205/","ОК",{"$f":"IF(MOD(GetURLstatus(A33)+GetURLstatus(B33)-400,100),SUMPRODUCT(--(MOD(GetURLstatus(A33)+GetURLstatus(B33)-400,100)={3,6,4,8}),{403,403,404,404}),\"OK\")","v":"OK"}]
["http://iqtoy.ru/store/product/72277","http://iqtoy.ru/store/product/72277/","404",{"$f":"IF(MOD(GetURLstatus(A34)+GetURLstatus(B34)-400,100),SUMPRODUCT(--(MOD(GetURLstatus(A34)+GetURLstatus(B34)-400,100)={3,6,4,8}),{403,403,404,404}),\"OK\")","v":404}]
["http://iqtoy.ru/store/product/72276","http://iqtoy.ru/store/product/72276/","404",{"$f":"IF(MOD(GetURLstatus(A35)+GetURLstatus(B35)-400,100),SUMPRODUCT(--(MOD(GetURLstatus(A35)+GetURLstatus(B35)-400,100)={3,6,4,8}),{403,403,404,404}),\"OK\")","v":404}]
["http://iqtoy.ru/store/product/72278","http://iqtoy.ru/store/product/72278/","404",{"$f":"IF(MOD(GetURLstatus(A36)+GetURLstatus(B36)-400,100),SUMPRODUCT(--(MOD(GetURLstatus(A36)+GetURLstatus(B36)-400,100)={3,6,4,8}),{403,403,404,404}),\"OK\")","v":404}]
["http://iqtoy.ru/store/product/55004","http://iqtoy.ru/store/product/tom-servis-ramka-vkladysh-geom-bolshaya-322/","ОК",{"$f":"IF(MOD(GetURLstatus(A37)+GetURLstatus(B37)-400,100),SUMPRODUCT(--(MOD(GetURLstatus(A37)+GetURLstatus(B37)-400,100)={3,6,4,8}),{403,403,404,404}),\"OK\")","v":"OK"}]
["http://iqtoy.ru/store/product/55005","http://iqtoy.ru/store/product/tom-servis-ramka-vkladysh-geom-kvadrat-332/","ОК",{"$f":"IF(MOD(GetURLstatus(A38)+GetURLstatus(B38)-400,100),SUMPRODUCT(--(MOD(GetURLstatus(A38)+GetURLstatus(B38)-400,100)={3,6,4,8}),{403,403,404,404}),\"OK\")","v":"OK"}]
["http://iqtoy.ru/store/product/40665","http://iqtoy.ru/store/product/tom-servis-ramka-vkladysh-geom-krug-342/","ОК",{"$f":"IF(MOD(GetURLstatus(A39)+GetURLstatus(B39)-400,100),SUMPRODUCT(--(MOD(GetURLstatus(A39)+GetURLstatus(B39)-400,100)={3,6,4,8}),{403,403,404,404}),\"OK\")","v":404}]
["http://iqtoy.ru/store/product/40668","http://iqtoy.ru/store/product/tom-servis-ramka-vkladysh-transport-362/","ОК",{"$f":"IF(MOD(GetURLstatus(A40)+GetURLstatus(B40)-400,100),SUMPRODUCT(--(MOD(GetURLstatus(A40)+GetURLstatus(B40)-400,100)={3,6,4,8}),{403,403,404,404}),\"OK\")","v":404}]
["http://iqtoy.ru/store/product/68962","http://iqtoy.ru/store/product/tom-servis-ramka-vkladysh-ovoshi-372-2/","ОК",{"$f":"IF(MOD(GetURLstatus(A41)+GetURLstatus(B41)-400,100),SUMPRODUCT(--(MOD(GetURLstatus(A41)+GetURLstatus(B41)-400,100)={3,6,4,8}),{403,403,404,404}),\"OK\")","v":"OK"}]
["http://iqtoy.ru/store/product/40667","http://iqtoy.ru/store/product/tom-servis-ramka-vkladysh-igrushki-451/","ОК",{"$f":"IF(MOD(GetURLstatus(A42)+GetURLstatus(B42)-400,100),SUMPRODUCT(--(MOD(GetURLstatus(A42)+GetURLstatus(B42)-400,100)={3,6,4,8}),{403,403,404,404}),\"OK\")","v":"OK"}]
["http://iqtoy.ru/store/product/72273","http://iqtoy.ru/store/product/72273/","404",{"$f":"IF(MOD(GetURLstatus(A43)+GetURLstatus(B43)-400,100),SUMPRODUCT(--(MOD(GetURLstatus(A43)+GetURLstatus(B43)-400,100)={3,6,4,8}),{403,403,404,404}),\"OK\")","v":404}]
["http://iqtoy.ru/store/product/72279","http://iqtoy.ru/store/product/72279/","404",{"$f":"IF(MOD(GetURLstatus(A44)+GetURLstatus(B44)-400,100),SUMPRODUCT(--(MOD(GetURLstatus(A44)+GetURLstatus(B44)-400,100)={3,6,4,8}),{403,403,404,404}),\"OK\")","v":404}]
["http://iqtoy.ru/store/product/68959","http://iqtoy.ru/store/product/sorter-tom-servis-veselye-figurki-13-det-968/","ОК",{"$f":"IF(MOD(GetURLstatus(A45)+GetURLstatus(B45)-400,100),SUMPRODUCT(--(MOD(GetURLstatus(A45)+GetURLstatus(B45)-400,100)={3,6,4,8}),{403,403,404,404}),\"OK\")","v":"OK"}]
["http://iqtoy.ru/store/product/68960","http://iqtoy.ru/store/product/sorter-tom-servis-krug-7-det-969/","ОК",{"$f":"IF(MOD(GetURLstatus(A46)+GetURLstatus(B46)-400,100),SUMPRODUCT(--(MOD(GetURLstatus(A46)+GetURLstatus(B46)-400,100)={3,6,4,8}),{403,403,404,404}),\"OK\")","v":"OK"}]
["x","x","",{"$f":"IF(MOD(GetURLstatus(A47)+GetURLstatus(B47)-400,100),SUMPRODUCT(--(MOD(GetURLstatus(A47)+GetURLstatus(B47)-400,100)={3,6,4,8}),{403,403,404,404}),\"OK\")","v":"OK"}]
["http://iqtoy.ru/store/product/68646","http://iqtoy.ru/store/product/wow-shkolnyy-avtobus-sidni-01010/","ОК",{"$f":"IF(MOD(GetURLstatus(A48)+GetURLstatus(B48)-400,100),SUMPRODUCT(--(MOD(GetURLstatus(A48)+GetURLstatus(B48)-400,100)={3,6,4,8}),{403,403,404,404}),\"OK\")","v":"OK"}]
["http://iqtoy.ru/store/product/68647","http://iqtoy.ru/store/product/wow-samolet-dzhonni-dzhangl-01013/","ОК",{"$f":"IF(MOD(GetURLstatus(A49)+GetURLstatus(B49)-400,100),SUMPRODUCT(--(MOD(GetURLstatus(A49)+GetURLstatus(B49)-400,100)={3,6,4,8}),{403,403,404,404}),\"OK\")","v":"OK"}]
["http://iqtoy.ru/store/product/68633","http://iqtoy.ru/store/product/wow-ognennaya-molniya-frenki-01015/","ОК",{"$f":"IF(MOD(GetURLstatus(A50)+GetURLstatus(B50)-400,100),SUMPRODUCT(--(MOD(GetURLstatus(A50)+GetURLstatus(B50)-400,100)={3,6,4,8}),{403,403,404,404}),\"OK\")","v":"OK"}]
["http://iqtoy.ru/store/product/68634","http://iqtoy.ru/store/product/wow-dinamit-deyzi-01016/","ОК",{"$f":"IF(MOD(GetURLstatus(A51)+GetURLstatus(B51)-400,100),SUMPRODUCT(--(MOD(GetURLstatus(A51)+GetURLstatus(B51)-400,100)={3,6,4,8}),{403,403,404,404}),\"OK\")","v":"OK"}]
["http://iqtoy.ru/store/product/68635","http://iqtoy.ru/store/product/wow-pozharnaya-lodka-feliks-01017/","ОК",{"$f":"IF(MOD(GetURLstatus(A52)+GetURLstatus(B52)-400,100),SUMPRODUCT(--(MOD(GetURLstatus(A52)+GetURLstatus(B52)-400,100)={3,6,4,8}),{403,403,404,404}),\"OK\")","v":"OK"}]
["http://iqtoy.ru/store/product/68679","http://iqtoy.ru/store/product/wow-musorovoz-fred-01018/","ОК",{"$f":"IF(MOD(GetURLstatus(A53)+GetURLstatus(B53)-400,100),SUMPRODUCT(--(MOD(GetURLstatus(A53)+GetURLstatus(B53)-400,100)={3,6,4,8}),{403,403,404,404}),\"OK\")","v":"OK"}]
["http://iqtoy.ru/store/product/68648","http://iqtoy.ru/store/product/wow-motocikl-maks-01022/","ОК",{"$f":"IF(MOD(GetURLstatus(A54)+GetURLstatus(B54)-400,100),SUMPRODUCT(--(MOD(GetURLstatus(A54)+GetURLstatus(B54)-400,100)={3,6,4,8}),{403,403,404,404}),\"OK\")","v":"OK"}]
["http://iqtoy.ru/store/product/68636","http://iqtoy.ru/store/product/wow-molli-i-poni-misti-01024/","ОК",{"$f":"IF(MOD(GetURLstatus(A55)+GetURLstatus(B55)-400,100),SUMPRODUCT(--(MOD(GetURLstatus(A55)+GetURLstatus(B55)-400,100)={3,6,4,8}),{403,403,404,404}),\"OK\")","v":"OK"}]
["http://iqtoy.ru/store/product/68649","http://iqtoy.ru/store/product/wow-buldozer-lyuk-01026/","ОК",{"$f":"IF(MOD(GetURLstatus(A56)+GetURLstatus(B56)-400,100),SUMPRODUCT(--(MOD(GetURLstatus(A56)+GetURLstatus(B56)-400,100)={3,6,4,8}),{403,403,404,404}),\"OK\")","v":"OK"}]
["http://iqtoy.ru/store/product/68650","http://iqtoy.ru/store/product/wow-buldozer-tobi-01028/","ОК",{"$f":"IF(MOD(GetURLstatus(A57)+GetURLstatus(B57)-400,100),SUMPRODUCT(--(MOD(GetURLstatus(A57)+GetURLstatus(B57)-400,100)={3,6,4,8}),{403,403,404,404}),\"OK\")","v":"OK"}]
["http://iqtoy.ru/store/product/68652","http://iqtoy.ru/store/product/wow-dayving-s-denni-04010/","ОК",{"$f":"IF(MOD(GetURLstatus(A58)+GetURLstatus(B58)-400,100),SUMPRODUCT(--(MOD(GetURLstatus(A58)+GetURLstatus(B58)-400,100)={3,6,4,8}),{403,403,404,404}),\"OK\")","v":"OK"}]
["http://iqtoy.ru/store/product/68653","http://iqtoy.ru/store/product/wow-policyayskiy-charli-04050/","ОК",{"$f":"IF(MOD(GetURLstatus(A59)+GetURLstatus(B59)-400,100),SUMPRODUCT(--(MOD(GetURLstatus(A59)+GetURLstatus(B59)-400,100)={3,6,4,8}),{403,403,404,404}),\"OK\")","v":"OK"}]
["http://iqtoy.ru/store/product/68655","http://iqtoy.ru/store/product/wow-turbo-mashinki-bliznecy-06060/","ОК",{"$f":"IF(MOD(GetURLstatus(A60)+GetURLstatus(B60)-400,100),SUMPRODUCT(--(MOD(GetURLstatus(A60)+GetURLstatus(B60)-400,100)={3,6,4,8}),{403,403,404,404}),\"OK\")","v":"OK"}]
["http://iqtoy.ru/store/product/68656","http://iqtoy.ru/store/product/wow-penni-s-sobachkoy-na-progulke-10110/","ОК",{"$f":"IF(MOD(GetURLstatus(A61)+GetURLstatus(B61)-400,100),SUMPRODUCT(--(MOD(GetURLstatus(A61)+GetURLstatus(B61)-400,100)={3,6,4,8}),{403,403,404,404}),\"OK\")","v":"OK"}]
["http://iqtoy.ru/store/product/68677","http://iqtoy.ru/store/product/wow-kombayn-harvi-10120/","ОК",{"$f":"IF(MOD(GetURLstatus(A62)+GetURLstatus(B62)-400,100),SUMPRODUCT(--(MOD(GetURLstatus(A62)+GetURLstatus(B62)-400,100)={3,6,4,8}),{403,403,404,404}),\"OK\")","v":"OK"}]
["http://iqtoy.ru/store/product/68637","http://iqtoy.ru/store/product/wow-fermer-berni-10150/","ОК",{"$f":"IF(MOD(GetURLstatus(A63)+GetURLstatus(B63)-400,100),SUMPRODUCT(--(MOD(GetURLstatus(A63)+GetURLstatus(B63)-400,100)={3,6,4,8}),{403,403,404,404}),\"OK\")","v":"OK"}]
["http://iqtoy.ru/store/product/68657","http://iqtoy.ru/store/product/wow-uborochnaya-mashinka-stenli-10160/","ОК",{"$f":"IF(MOD(GetURLstatus(A64)+GetURLstatus(B64)-400,100),SUMPRODUCT(--(MOD(GetURLstatus(A64)+GetURLstatus(B64)-400,100)={3,6,4,8}),{403,403,404,404}),\"OK\")","v":"OK"}]
["http://iqtoy.ru/store/product/68638","http://iqtoy.ru/store/product/wow-kvadrocikl-ralf-10170/",{"$f":"IF(A65&\"/\"=B65, \"404\",IF(A65=B65,\"\",\"ОК\"))","v":"ОК"},{"$f":"IF(MOD(GetURLstatus(A65)+GetURLstatus(B65)-400,100),SUMPRODUCT(--(MOD(GetURLstatus(A65)+GetURLstatus(B65)-400,100)={3,6,4,8}),{403,403,404,404}),\"OK\")","v":"OK"}]
["http://iqtoy.ru/store/product/71245","http://iqtoy.ru/store/product/wow-betonomeshalka-mayk-10185/","ОК",{"$f":"IF(MOD(GetURLstatus(A66)+GetURLstatus(B66)-400,100),SUMPRODUCT(--(MOD(GetURLstatus(A66)+GetURLstatus(B66)-400,100)={3,6,4,8}),{403,403,404,404}),\"OK\")","v":"OK"}]
["http://iqtoy.ru/store/product/68682","http://iqtoy.ru/store/product/wow-stroitelnyy-samosval-dadli-10190/","ОК",{"$f":"IF(MOD(GetURLstatus(A67)+GetURLstatus(B67)-400,100),SUMPRODUCT(--(MOD(GetURLstatus(A67)+GetURLstatus(B67)-400,100)={3,6,4,8}),{403,403,404,404}),\"OK\")","v":"OK"}]
["http://iqtoy.ru/store/product/68664","http://iqtoy.ru/store/product/wow-raketa-ronni-10230/","ОК",{"$f":"IF(MOD(GetURLstatus(A68)+GetURLstatus(B68)-400,100),SUMPRODUCT(--(MOD(GetURLstatus(A68)+GetURLstatus(B68)-400,100)={3,6,4,8}),{403,403,404,404}),\"OK\")","v":"OK"}]
["http://iqtoy.ru/store/product/68665","http://iqtoy.ru/store/product/wow-kareta-princessy-pippa-10240/","ОК",{"$f":"IF(MOD(GetURLstatus(A69)+GetURLstatus(B69)-400,100),SUMPRODUCT(--(MOD(GetURLstatus(A69)+GetURLstatus(B69)-400,100)={3,6,4,8}),{403,403,404,404}),\"OK\")","v":"OK"}]
["http://iqtoy.ru/store/product/68667","http://iqtoy.ru/store/product/wow-picceriya-mario-10300/","ОК",{"$f":"IF(MOD(GetURLstatus(A70)+GetURLstatus(B70)-400,100),SUMPRODUCT(--(MOD(GetURLstatus(A70)+GetURLstatus(B70)-400,100)={3,6,4,8}),{403,403,404,404}),\"OK\")","v":"OK"}]
["http://iqtoy.ru/store/product/68658","http://iqtoy.ru/store/product/wow-pekarnya-kloi-10301/","ОК",{"$f":"IF(MOD(GetURLstatus(A71)+GetURLstatus(B71)-400,100),SUMPRODUCT(--(MOD(GetURLstatus(A71)+GetURLstatus(B71)-400,100)={3,6,4,8}),{403,403,404,404}),\"OK\")","v":"OK"}]
["http://iqtoy.ru/store/product/68659","http://iqtoy.ru/store/product/wow-katok-ralli-10302/","ОК",{"$f":"IF(MOD(GetURLstatus(A72)+GetURLstatus(B72)-400,100),SUMPRODUCT(--(MOD(GetURLstatus(A72)+GetURLstatus(B72)-400,100)={3,6,4,8}),{403,403,404,404}),\"OK\")","v":"OK"}]
["http://iqtoy.ru/store/product/68660","http://iqtoy.ru/store/product/wow-emi-i-motocikl-10304/","ОК",{"$f":"IF(MOD(GetURLstatus(A73)+GetURLstatus(B73)-400,100),SUMPRODUCT(--(MOD(GetURLstatus(A73)+GetURLstatus(B73)-400,100)={3,6,4,8}),{403,403,404,404}),\"OK\")","v":"OK"}]
["http://iqtoy.ru/store/product/71247","http://iqtoy.ru/store/product/wow-kareta-princessy-rozi-10305/","ОК",{"$f":"IF(MOD(GetURLstatus(A74)+GetURLstatus(B74)-400,100),SUMPRODUCT(--(MOD(GetURLstatus(A74)+GetURLstatus(B74)-400,100)={3,6,4,8}),{403,403,404,404}),\"OK\")","v":"OK"}]
["http://iqtoy.ru/store/product/68640","http://iqtoy.ru/store/product/wow-drakon-dzhordzh-10306/","ОК",{"$f":"IF(MOD(GetURLstatus(A75)+GetURLstatus(B75)-400,100),SUMPRODUCT(--(MOD(GetURLstatus(A75)+GetURLstatus(B75)-400,100)={3,6,4,8}),{403,403,404,404}),\"OK\")","v":"OK"}]
["http://iqtoy.ru/store/product/68641","http://iqtoy.ru/store/product/wow-snegohod-archi-10307/","ОК",{"$f":"IF(MOD(GetURLstatus(A76)+GetURLstatus(B76)-400,100),SUMPRODUCT(--(MOD(GetURLstatus(A76)+GetURLstatus(B76)-400,100)={3,6,4,8}),{403,403,404,404}),\"OK\")","v":"OK"}]
["http://iqtoy.ru/store/product/68661","http://iqtoy.ru/store/product/wow-igrovaya-ploshadka-s-dzheki-i-dzhess-10308/","ОК",{"$f":"IF(MOD(GetURLstatus(A77)+GetURLstatus(B77)-400,100),SUMPRODUCT(--(MOD(GetURLstatus(A77)+GetURLstatus(B77)-400,100)={3,6,4,8}),{403,403,404,404}),\"OK\")","v":"OK"}]
["http://iqtoy.ru/store/product/68662","http://iqtoy.ru/store/product/wow-pit-policyayskiy-samolet-10309/","ОК",{"$f":"IF(MOD(GetURLstatus(A78)+GetURLstatus(B78)-400,100),SUMPRODUCT(--(MOD(GetURLstatus(A78)+GetURLstatus(B78)-400,100)={3,6,4,8}),{403,403,404,404}),\"OK\")","v":"OK"}]
["http://iqtoy.ru/store/product/68643","http://iqtoy.ru/store/product/wow-pozharnyy-kvadocikl-berti-10311/","ОК",{"$f":"IF(MOD(GetURLstatus(A79)+GetURLstatus(B79)-400,100),SUMPRODUCT(--(MOD(GetURLstatus(A79)+GetURLstatus(B79)-400,100)={3,6,4,8}),{403,403,404,404}),\"OK\")","v":"OK"}]
["http://iqtoy.ru/store/product/68670","http://iqtoy.ru/store/product/wow-medicinskiy-vertolet-karl-10313/","ОК",{"$f":"IF(MOD(GetURLstatus(A80)+GetURLstatus(B80)-400,100),SUMPRODUCT(--(MOD(GetURLstatus(A80)+GetURLstatus(B80)-400,100)={3,6,4,8}),{403,403,404,404}),\"OK\")","v":"OK"}]
["http://iqtoy.ru/store/product/68671","http://iqtoy.ru/store/product/wow-pozharnyy-vertolet-rori-10314/","ОК",{"$f":"IF(MOD(GetURLstatus(A81)+GetURLstatus(B81)-400,100),SUMPRODUCT(--(MOD(GetURLstatus(A81)+GetURLstatus(B81)-400,100)={3,6,4,8}),{403,403,404,404}),\"OK\")","v":"OK"}]
["http://iqtoy.ru/store/product/68644","http://iqtoy.ru/store/product/wow-ferma-benni-10316/","ОК",{"$f":"IF(MOD(GetURLstatus(A82)+GetURLstatus(B82)-400,100),SUMPRODUCT(--(MOD(GetURLstatus(A82)+GetURLstatus(B82)-400,100)={3,6,4,8}),{403,403,404,404}),\"OK\")","v":"OK"}]
["http://iqtoy.ru/store/product/68676","http://iqtoy.ru/store/product/wow-furgonchik-dlya-piknika-kyaysi-10317/","ОК",{"$f":"IF(MOD(GetURLstatus(A83)+GetURLstatus(B83)-400,100),SUMPRODUCT(--(MOD(GetURLstatus(A83)+GetURLstatus(B83)-400,100)={3,6,4,8}),{403,403,404,404}),\"OK\")","v":"OK"}]
["http://iqtoy.ru/store/product/68674","http://iqtoy.ru/store/product/wow-gruzovichok-berni-10318/","ОК",{"$f":"IF(MOD(GetURLstatus(A84)+GetURLstatus(B84)-400,100),SUMPRODUCT(--(MOD(GetURLstatus(A84)+GetURLstatus(B84)-400,100)={3,6,4,8}),{403,403,404,404}),\"OK\")","v":"OK"}]
["http://iqtoy.ru/store/product/68672","http://iqtoy.ru/store/product/wow-puteshestvie-s-poni-poppi-10319/","ОК",{"$f":"IF(MOD(GetURLstatus(A85)+GetURLstatus(B85)-400,100),SUMPRODUCT(--(MOD(GetURLstatus(A85)+GetURLstatus(B85)-400,100)={3,6,4,8}),{403,403,404,404}),\"OK\")","v":"OK"}]
["http://iqtoy.ru/store/product/68673","http://iqtoy.ru/store/product/wow-vnedorozhniy-olli-10320/","ОК",{"$f":"IF(MOD(GetURLstatus(A86)+GetURLstatus(B86)-400,100),SUMPRODUCT(--(MOD(GetURLstatus(A86)+GetURLstatus(B86)-400,100)={3,6,4,8}),{403,403,404,404}),\"OK\")","v":"OK"}]
["http://iqtoy.ru/store/product/68668","http://iqtoy.ru/store/product/wow-pozharnaya-mashina-erni-10321/","ОК",{"$f":"IF(MOD(GetURLstatus(A87)+GetURLstatus(B87)-400,100),SUMPRODUCT(--(MOD(GetURLstatus(A87)+GetURLstatus(B87)-400,100)={3,6,4,8}),{403,403,404,404}),\"OK\")","v":"OK"}]
["http://iqtoy.ru/store/product/71248","http://iqtoy.ru/store/product/wow-morskoy-patrul-semmi-10322/","ОК",{"$f":"IF(MOD(GetURLstatus(A88)+GetURLstatus(B88)-400,100),SUMPRODUCT(--(MOD(GetURLstatus(A88)+GetURLstatus(B88)-400,100)={3,6,4,8}),{403,403,404,404}),\"OK\")","v":"OK"}]
["http://iqtoy.ru/store/product/68675","http://iqtoy.ru/store/product/wow-puteshestvie-rayana-10328/","ОК",{"$f":"IF(MOD(GetURLstatus(A89)+GetURLstatus(B89)-400,100),SUMPRODUCT(--(MOD(GetURLstatus(A89)+GetURLstatus(B89)-400,100)={3,6,4,8}),{403,403,404,404}),\"OK\")","v":"OK"}]
["http://iqtoy.ru/store/product/71249","http://iqtoy.ru/store/product/wow-samolet-tilli-10329/","ОК",{"$f":"IF(MOD(GetURLstatus(A90)+GetURLstatus(B90)-400,100),SUMPRODUCT(--(MOD(GetURLstatus(A90)+GetURLstatus(B90)-400,100)={3,6,4,8}),{403,403,404,404}),\"OK\")","v":"OK"}]
["http://iqtoy.ru/store/product/71250","http://iqtoy.ru/store/product/wow-persi-spasatel-domashnih-zhivotnyh-10330/","ОК",{"$f":"IF(MOD(GetURLstatus(A91)+GetURLstatus(B91)-400,100),SUMPRODUCT(--(MOD(GetURLstatus(A91)+GetURLstatus(B91)-400,100)={3,6,4,8}),{403,403,404,404}),\"OK\")","v":"OK"}]
["http://iqtoy.ru/store/product/71251","http://iqtoy.ru/store/product/wow-gonshik-robbi-10339/","ОК",{"$f":"IF(MOD(GetURLstatus(A92)+GetURLstatus(B92)-400,100),SUMPRODUCT(--(MOD(GetURLstatus(A92)+GetURLstatus(B92)-400,100)={3,6,4,8}),{403,403,404,404}),\"OK\")","v":"OK"}]
["http://iqtoy.ru/store/product/74785","http://iqtoy.ru/store/product/wow-mini-gonochnyy-avtomobilchik-ays-10350/","ОК",{"$f":"IF(MOD(GetURLstatus(A93)+GetURLstatus(B93)-400,100),SUMPRODUCT(--(MOD(GetURLstatus(A93)+GetURLstatus(B93)-400,100)={3,6,4,8}),{403,403,404,404}),\"OK\")","v":"OK"}]
["http://iqtoy.ru/store/product/74795","http://iqtoy.ru/store/product/wow-gonochnyy-avtomobil-izzi-10360/","ОК",{"$f":"IF(MOD(GetURLstatus(A94)+GetURLstatus(B94)-400,100),SUMPRODUCT(--(MOD(GetURLstatus(A94)+GetURLstatus(B94)-400,100)={3,6,4,8}),{403,403,404,404}),\"OK\")","v":"OK"}]
["http://iqtoy.ru/store/product/74787","http://iqtoy.ru/store/product/wow-pozharnaya-mashinka-blyayz-10370/","ОК",{"$f":"IF(MOD(GetURLstatus(A95)+GetURLstatus(B95)-400,100),SUMPRODUCT(--(MOD(GetURLstatus(A95)+GetURLstatus(B95)-400,100)={3,6,4,8}),{403,403,404,404}),\"OK\")","v":"OK"}]
["http://iqtoy.ru/store/product/74797","http://iqtoy.ru/store/product/wow-skoraya-pomosh-dzhoi-10380/","ОК",{"$f":"IF(MOD(GetURLstatus(A96)+GetURLstatus(B96)-400,100),SUMPRODUCT(--(MOD(GetURLstatus(A96)+GetURLstatus(B96)-400,100)={3,6,4,8}),{403,403,404,404}),\"OK\")","v":"OK"}]
["http://iqtoy.ru/store/product/74788","http://iqtoy.ru/store/product/wow-malenkaya-betonomeshalka-kley-10390/","ОК",{"$f":"IF(MOD(GetURLstatus(A97)+GetURLstatus(B97)-400,100),SUMPRODUCT(--(MOD(GetURLstatus(A97)+GetURLstatus(B97)-400,100)={3,6,4,8}),{403,403,404,404}),\"OK\")","v":"OK"}]
["http://iqtoy.ru/store/product/74796","http://iqtoy.ru/store/product/wow-samosval-yaks-10400/","ОК",{"$f":"IF(MOD(GetURLstatus(A98)+GetURLstatus(B98)-400,100),SUMPRODUCT(--(MOD(GetURLstatus(A98)+GetURLstatus(B98)-400,100)={3,6,4,8}),{403,403,404,404}),\"OK\")","v":"OK"}]
["http://iqtoy.ru/store/product/71253","http://iqtoy.ru/store/product/71253/","404",{"$f":"IF(MOD(GetURLstatus(A99)+GetURLstatus(B99)-400,100),SUMPRODUCT(--(MOD(GetURLstatus(A99)+GetURLstatus(B99)-400,100)={3,6,4,8}),{403,403,404,404}),\"OK\")","v":404}]

{"sheet":"Лист2","index":1,"n_rows":0,"n_cols":0,"rows_kept":0,"cut":false,"hidden":false,"merged":[]}

{"sheet":"Лист3","index":2,"n_rows":0,"n_cols":0,"rows_kept":0,"cut":false,"hidden":false,"merged":[]}